bitfinex/quotes_ETHUSD_20240718
["timestamp","ask_amount","ask_price","bid_price","bid_amount"]
[1721306986801,2.87498,3478.3,3477.0,0.03969465]
[1721306987582,3.449668,3478.6,3477.0,0.03969465]
[1721306987881,0.574928,3478.6,3477.0,0.03969465]
[1721306988376,8.1915,3478.8,3477.1,5.41485389]
[1721306988377,2.8748,3478.5,3477.1,5.41485389]
[1721306988731,2.8748,3478.5,3477.2,0.03964488]
[1721306989131,3.1752206,3478.7,3477.4,2.4814]
[1721306989132,0.3005906,3478.7,3477.4,2.4814]
[1721306989423,7.28,3479.3,3477.9,2.87524]
[1721306989571,2.87383,3479.7,3478.1,2.87511]
[1721306989775,2.87391,3479.6,3478.2,0.05748298]
[1721306990024,2.87383,3479.7,3478.3,0.05748298]
[1721306990308,2.87373,3479.8,3478.4,2.87488]
[1721306990509,2.87381,3479.7,3478.5,0.05747885]
[1721306990724,3.89605899,3480.0,3478.5,0.03909592]
[1721306990725,2.87397,3479.5,3478.5,0.03909592]
[1721306990931,2.87414,3479.3,3478.1,3.0]
[1721306991102,2.87424,3479.2,3478.6,0.03901119]
[1721306991304,2.87431,3479.1,3478.1,4.49908354]
[1721306991530,2.87431,3479.1,3478.7,0.03898233]
[1721306991697,2.87431,3479.1,3478.2,3.0]
[1721306992017,2.87431,3479.1,3478.8,0.03895548]
[1721306992191,2.3443,3479.7,3478.0,2.4814]
[1721306992382,2.87455,3478.8,3478.0,2.4814]
[1721306992587,2.87455,3478.8,3478.1,0.03915748]
[1721306992784,2.87424,3479.2,3478.1,0.03915748]
[1721306993208,0.03322366,3479.3,3478.1,0.03915748]
[1721306993412,2.87406,3479.4,3478.1,0.35030516]
[1721306993809,2.87438,3479.1,3478.1,0.35030516]
[1721306993987,2.87438,3479.1,3478.2,0.99935856]
[1721306994187,2.87438,3479.1,3478.1,0.35030516]
[1721306994415,2.87463,3478.7,3478.3,0.03915164]
[1721306994622,2.87463,3478.7,3478.2,0.0391805]
[1721306994793,2.87475,3478.6,3478.4,0.03913077]
[1721306995001,2.87475,3478.6,3478.3,0.03902389]
[1721306995208,2.87449,3478.9,3477.8,1.49924828]
[1721306995393,2.87449,3478.9,3477.9,2.49871107]
[1721306995725,2.87472,3478.6,3477.9,0.03913935]
[1721306996023,2.8747,3478.7,3477.7,0.59091928]
[1721306996202,2.87473,3478.6,3478.0,0.03911846]
[1721306996400,2.87473,3478.6,3477.7,0.59091928]
[1721306996618,2.87473,3478.6,3478.1,0.0390896]
[1721306996796,2.87473,3478.6,3477.7,0.59091928]
[1721306996998,2.87442,3479.0,3478.2,0.03906074]
[1721306997202,2.87442,3479.0,3477.7,0.59091928]
[1721306997203,2.87447,3478.9,3477.9,0.59091928]
[1721306997398,2.87447,3478.9,3478.3,0.03903188]
[1721306997603,2.87479,3478.6,3477.9,0.59091928]
[1721306997816,2.87479,3478.6,3478.4,0.03900302]
[1721306998011,2.87479,3478.6,3477.6,2.3757]
[1721306998012,2.87493,3478.4,3477.8,1.49930539]
[1721306998198,2.87493,3478.4,3477.5,0.59091928]
[1721306998199,2.87497,3478.3,3477.5,0.59091928]
[1721306998403,2.87497,3478.3,3477.9,0.03916529]
[1721306998604,2.87497,3478.3,3477.4,0.59091928]
[1721306998807,2.87497,3478.3,3478.0,0.03913643]
[1721306998992,2.87485,3478.5,3477.5,0.59091928]
[1721306999213,2.87485,3478.5,3478.1,0.0391395]
[1721306999401,2.87485,3478.5,3477.5,0.59091928]
[1721306999613,2.87464,3478.7,3478.2,0.03911064]
[1721306999614,2.87472,3478.6,3478.2,0.03911064]
[1721306999808,2.87472,3478.6,3477.7,0.59091928]
[1721307000000,2.87472,3478.6,3477.8,2.6465839]
[1721307000324,2.87472,3478.6,3477.8,0.18698586]
[1721307000537,2.87464,3478.7,3477.9,2.49893108]
[1721307000710,2.87481,3478.5,3478.0,0.03919831]
[1721307000898,2.87481,3478.5,3477.6,0.59091928]
[1721307000899,2.87481,3478.5,3477.5,0.59091928]
[1721307001100,2.87498,3478.3,3477.6,2.53827715]
[1721307001341,2.87498,3478.3,3477.7,0.99959333]
[1721307001495,2.87498,3478.3,3477.6,0.03929382]
[1721307001496,2.87481,3478.5,3477.8,0.03923608]
[1721307001692,2.87481,3478.5,3477.5,0.59091928]
[1721307001896,2.87481,3478.5,3477.6,2.53829267]
[1721307002127,7.28,3479.1,3477.7,0.99959954]
[1721307002128,2.87465,3478.7,3477.7,0.99959954]
[1721307002307,7.28,3479.1,3477.8,2.44443608]
[1721307002509,7.28,3479.1,3478.1,0.59091928]
[1721307002829,7.28,3479.1,3478.2,3.12889842]
[1721307002993,7.28,3479.1,3478.3,2.49885852]
[1721307003196,7.28,3479.1,3478.4,0.31288984]
[1721307003426,10.15431,3479.1,3478.4,0.0390629]
[1721307003625,2.87452,3478.9,3478.4,0.0390629]
[1721307003834,2.87452,3478.9,3477.9,3.0]
[1721307003835,2.87456,3478.8,3477.9,3.0]
[1721307004023,7.28,3479.1,3477.9,3.0]
[1721307004024,2.87446,3479.0,3478.5,0.03903405]
[1721307004329,2.87402,3479.5,3477.9,3.0]
[1721307004330,2.87455,3478.8,3477.9,3.0]
[1721307004548,2.87455,3478.8,3477.8,5.4052]
[1721307004751,2.87455,3478.8,3477.9,0.03920721]
[1721307006021,2.90733366,3479.4,3477.9,0.03920721]
[1721307006022,2.87463,3478.7,3477.9,0.03920721]
[1721307006222,5.50133366,3479.4,3477.9,0.03920721]
[1721307006223,2.87497,3478.3,3477.9,0.03920721]
[1721307006649,2.87497,3478.3,3477.3,2.2868]
[1721307006842,2.87497,3478.3,3478.0,0.03919432]
[1721307007040,2.87497,3478.3,3477.4,0.28777193]
[1721307007241,2.87497,3478.3,3478.1,0.03916146]
[1721307007435,2.87497,3478.3,3477.4,0.28777193]
[1721307007840,2.87497,3478.3,3477.5,0.03933467]
[1721307008047,2.87484,3478.5,3477.6,0.26139066]
[1721307008728,2.87484,3478.5,3477.7,0.03927692]
[1721307008939,2.8749,3478.4,3477.7,0.03927692]
[1721307009250,2.87438,3479.0,3477.7,0.03927692]
[1721307009251,2.87498,3478.3,3477.7,0.03927692]
[1721307009454,2.87496,3478.3,3477.7,0.03927692]
[1721307010568,2.87496,3478.3,3477.3,2.2868]
[1721307010729,2.87496,3478.3,3477.4,0.03936354]
[1721307011058,7.28,3479.1,3477.4,0.03936354]
[1721307011059,2.87474,3478.6,3477.4,0.03936354]
[1721307011357,2.87465,3478.7,3477.4,2.91506354]
[1721307011358,2.87463,3478.7,3477.4,2.91506354]
[1721307011557,2.87472,3478.6,3477.4,0.03936354]
[1721307011920,2.8746,3478.8,3477.5,2.33289461]
[1721307012125,2.8746,3478.8,3477.6,0.03930579]
[1721307012854,2.87464,3478.7,3477.6,0.03930579]
[1721307013239,2.87473,3478.6,3477.6,0.03930579]
[1721307013543,2.87488,3478.4,3477.6,0.03930579]
[1721307015447,2.8748,3478.5,3477.6,0.03930579]
[1721307017362,5.74967,3478.5,3477.6,0.03930579]
[1721307017559,2.8749,3478.4,3477.6,0.03930579]
[1721307018260,2.87479,3478.6,3477.6,0.03930579]
[1721307018562,2.87468,3478.7,3477.7,0.23147058]
[1721307018865,2.87468,3478.7,3477.8,0.03930594]
[1721307023056,2.87447,3478.9,3477.8,0.03930594]
[1721307023236,2.93,3479.3,3477.9,2.35599522]
[1721307023437,2.93,3479.3,3478.1,2.2985]
[1721307023669,2.93,3479.3,3478.3,2.2985]
[1721307024160,2.93,3479.3,3478.4,0.03910881]
[1721307024736,2.87468,3478.7,3478.4,0.03910881]
[1721307025256,2.87472,3478.6,3478.5,0.03899013]
[1721307025460,6.32438,3478.6,3478.5,0.03899013]
[1721307025646,6.32438,3478.6,3477.8,2.493]
[1721307025647,2.87502,3478.3,3477.8,2.493]
[1721307026372,2.87513,3478.1,3477.9,0.03785001]
[1721307027173,2.87533,3477.9,3477.2,2.3657]
[1721307027550,2.87513,3478.1,3477.3,35.03678816]
[1721307027880,2.87531,3477.9,3477.3,35.03678816]
[1721307029140,2.87544,3477.8,3477.3,0.03678816]
[1721307029573,5.75102,3477.7,3477.3,0.03678816]
[1721307029790,2.87554,3477.6,3477.3,0.03678816]
[1721307029946,2.87564,3477.5,3477.3,0.03678816]
[1721307030445,2.87564,3477.5,3476.8,37.4178]
[1721307030641,2.87564,3477.5,3477.4,0.03682704]
[1721307030843,2.87564,3477.5,3476.8,37.4178]
[1721307031069,2.87564,3477.5,3477.4,0.03684697]
[1721307031070,3.5082595,3477.5,3477.4,0.03684697]
[1721307031245,3.5082595,3477.5,3476.5,2.4178]
[1721307031246,2.87564,3477.5,3476.5,2.4178]
[1721307031572,2.87564,3477.5,3476.6,0.03708998]
[1721307031881,2.87525,3478.0,3476.7,2.4178]
[1721307031882,2.87522,3478.0,3476.7,2.4178]
[1721307032248,2.87522,3478.0,3476.8,0.07370837]
[1721307032474,2.87532,3477.9,3476.8,0.07370837]
[1721307032679,2.87541,3477.8,3476.9,0.24915084]
[1721307033078,2.87541,3477.8,3477.0,0.0736485]
[1721307034078,2.87564,3477.5,3476.7,2.4178]
[1721307034276,2.87573,3477.4,3476.7,2.4178]
[1721307034496,2.87573,3477.4,3476.8,0.07370837]
[1721307034805,2.87572,3477.4,3476.8,0.07370837]
[1721307034998,2.87564,3477.5,3476.8,0.32285921]
[1721307035302,2.87524,3478.0,3476.8,0.32285921]
[1721307035502,2.87529,3478.0,3476.9,2.4352]
[1721307035925,2.87529,3478.0,3477.0,0.07391353]
[1721307036122,10.15489,3478.4,3477.1,2.31180739]
[1721307036416,2.87489,3478.4,3477.2,2.35985366]
[1721307036720,2.87472,3478.6,3477.3,2.286]
[1721307037022,2.87472,3478.6,3477.4,0.07379381]
[1721307037172,2.87472,3478.6,3477.5,2.286]
[1721307037376,2.87456,3478.8,3477.5,2.286]
[1721307037377,2.87456,3478.8,3477.6,0.07373395]
[1721307037714,2.87456,3478.8,3477.8,2.4804]
[1721307038121,8.39817,3479.3,3477.9,0.07353655]
[1721307038122,2.87448,3478.9,3477.9,0.07353655]
[1721307038974,2.87441,3479.0,3478.0,2.2708]
[1721307039177,2.87424,3479.2,3478.1,0.073399]
[1721307039376,2.87437,3479.1,3478.1,0.073399]
[1721307039590,2.87439,3479.0,3478.1,0.3135685]
[1721307040122,2.93,3479.3,3478.2,2.3161]
[1721307040617,2.93,3479.3,3478.3,0.0733053]
[1721307042555,2.87431,3479.1,3478.3,0.0733053]
[1721307042692,2.90764366,3479.0,3478.3,0.0733053]
[1721307042889,3.45271537,3478.9,3478.3,0.0733053]
[1721307043090,2.87431,3479.1,3478.2,2.3161]
[1721307043730,2.87431,3479.1,3478.3,0.07325749]
[1721307043731,2.87443,3479.0,3478.3,0.07325749]
[1721307044222,2.87443,3479.0,3478.2,2.3161]
[1721307044620,2.87443,3479.0,3478.3,0.07325749]
[1721307045021,2.87443,3479.0,3478.2,2.3161]
[1721307045393,2.87443,3479.0,3478.3,0.07325749]
[1721307045598,3.742304,3479.0,3478.2,2.3161]
[1721307045795,3.742304,3479.0,3478.3,0.07325749]
[1721307046036,2.87431,3479.1,3478.2,2.3161]
[1721307046333,2.87439,3479.0,3478.2,2.3161]
[1721307046546,2.87439,3479.0,3478.3,0.07325749]
[1721307046715,2.87456,3478.8,3478.3,0.07325749]
[1721307046901,3.449554,3478.7,3478.2,2.3161]
[1721307047448,2.87465,3478.7,3478.3,0.07325749]
[1721307047953,2.87465,3478.7,3478.2,2.3161]
[1721307049030,2.87448,3478.9,3478.2,2.3161]
[1721307049350,2.87439,3479.0,3478.2,2.3161]
[1721307049767,2.87439,3479.0,3478.3,0.07304226]
[1721307050063,2.87439,3479.0,3478.2,2.3161]
[1721307050265,2.87439,3479.0,3478.2,2.54771]
[1721307050469,2.87439,3479.0,3478.3,0.07304226]
[1721307050871,2.87439,3479.0,3478.3,0.06129248]
[1721307052739,2.87433,3479.1,3478.3,0.06129248]
[1721307053348,2.87418,3479.3,3478.4,2.2544]
[1721307053567,2.87437,3479.1,3478.4,2.2544]
[1721307053950,2.87437,3479.1,3478.5,0.07259078]
[1721307054156,2.8744,3479.0,3478.5,0.07259078]
[1721307054565,2.8744,3479.0,3478.4,2.2544]
[1721307054755,2.8744,3479.0,3478.5,0.07259476]
[1721307055159,2.8744,3479.0,3478.4,2.2544]
[1721307055361,2.8744,3479.0,3478.5,0.07259476]
[1721307055545,2.8744,3479.0,3478.4,2.2544]
[1721307056059,2.8744,3479.0,3478.5,0.07259476]
[1721307056273,0.6036038,3478.9,3478.5,0.07259476]
[1721307056593,0.6036038,3478.9,3478.4,2.2544]
[1721307056949,2.8744,3479.0,3478.5,0.07259277]
[1721307057171,2.8744,3479.0,3478.4,2.2544]
[1721307057473,2.8744,3479.0,3478.5,0.07259277]
[1721307057877,2.8744,3479.0,3478.4,2.2544]
[1721307058078,2.8744,3479.0,3478.6,0.07256286]
[1721307058263,0.6036038,3478.9,3478.5,0.07259277]
[1721307058449,0.6036038,3478.9,3478.7,0.07250109]
[1721307058644,3.161638,3479.2,3478.6,0.072531]
[1721307058844,2.87391,3479.6,3478.8,0.07247119]
[1721307059051,2.87391,3479.6,3478.9,2.2917]
[1721307059246,2.87376,3479.8,3478.9,2.2917]
[1721307059882,2.87376,3479.8,3479.0,0.0723835]
[1721307060696,0.03322366,3479.7,3479.0,0.0723835]
[1721307060898,2.87408,3479.4,3479.0,0.0723835]
[1721307061100,2.87425,3479.2,3479.0,0.0723835]
[1721307061394,2.8743,3479.1,3479.0,0.0723835]
[1721307061547,2.87439,3479.0,3478.3,2.2917]
[1721307061744,2.87447,3478.9,3478.3,2.2917]
[1721307062456,2.87439,3479.0,3478.3,2.2917]
[1721307062657,2.87456,3478.8,3478.3,2.2917]
[1721307063064,0.03322366,3478.7,3478.3,2.2917]
[1721307063559,2.90786366,3478.7,3478.3,2.2917]
[1721307063763,1.945,3478.5,3477.3,2.4079]
[1721307063998,1.945,3478.5,3476.6,4.49834084]
[1721307063999,2.87574,3477.4,3476.6,4.49834084]
[1721307064273,2.87574,3477.4,3476.5,0.88637893]
[1721307064274,2.8762,3476.9,3476.5,0.88637893]
[1721307064597,2.8762,3476.9,3475.9,3.90742156]
[1721307064766,2.87629,3476.7,3475.9,2.4079]
[1721307066752,2.87638,3476.6,3475.9,2.4079]
[1721307069956,2.87663,3476.3,3476.0,0.06603537]
[1721307070352,2.87608,3477.0,3475.9,2.4079]
[1721307070353,2.8763,3476.7,3475.9,2.4079]
[1721307070584,2.8763,3476.7,3476.0,0.06603537]
[1721307071984,0.287574,3477.3,3476.1,0.24739354]
[1721307072164,2.87536,3477.9,3476.1,0.24739354]
[1721307072165,2.87591,3477.2,3476.2,0.06597547]
[1721307072366,2.87596,3477.1,3476.2,0.06597547]
[1721307073070,2.87608,3477.0,3476.2,0.06597547]
[1721307073280,2.87608,3477.0,3475.9,2.4079]
[1721307073281,2.87623,3476.8,3475.9,2.4079]
[1721307073498,2.87623,3476.8,3476.3,0.06594552]
[1721307073803,0.575229,3476.7,3475.9,2.4079]
[1721307073970,2.87623,3476.8,3476.0,0.06642204]
[1721307074358,16.51225047,3478.7,3476.0,0.06642204]
[1721307074359,2.90952366,3476.7,3476.0,0.06642204]
[1721307074560,2.87654,3476.4,3476.0,0.06642204]
[1721307074788,2.87662,3476.3,3475.9,2.4079]
[1721307075209,2.87662,3476.3,3475.0,7.32]
[1721307075210,2.87671,3476.2,3475.1,2.4588]
[1721307075497,2.87671,3476.2,3475.2,0.0666617]
[1721307077481,2.87679,3476.1,3475.2,0.0666617]
[1721307077994,12.876,3477.0,3475.3,0.05753858]
[1721307077995,10.28,3477.0,3475.3,0.05753858]
[1721307078159,2.87529,3478.0,3475.1,2.4588]
[1721307078160,2.87589,3477.2,3475.7,2.87708]
[1721307078360,7.28,3477.8,3475.9,2.4128]
[1721307078361,2.87574,3477.4,3475.9,2.4128]
[1721307078625,2.87579,3477.3,3476.1,2.4128]
[1721307078768,2.87579,3477.3,3476.2,0.05752216]
[1721307078966,2.87579,3477.3,3476.3,0.05752216]
[1721307079166,2.87579,3477.3,3476.4,0.06687031]
[1721307079404,3.162889,3477.9,3476.5,0.05752203]
[1721307079405,2.87548,3477.7,3476.5,0.05752203]
[1721307079699,2.8754,3477.8,3476.6,0.12432395]
[1721307079893,2.8753,3477.9,3476.6,0.12432395]
[1721307080097,10.15514,3478.1,3476.8,2.4002]
[1721307080393,2.87514,3478.1,3476.8,2.4002]
[1721307080695,2.87523,3478.0,3476.9,0.06662486]
[1721307080864,2.87523,3478.0,3476.9,0.39136963]
[1721307081885,7.567439,3478.9,3477.0,0.05750738]
[1721307081886,2.8749,3478.4,3477.0,0.05750738]
[1721307082062,7.567439,3478.9,3477.1,2.3003]
[1721307082063,2.87468,3478.7,3477.1,2.3003]
[1721307082265,5.80457,3478.8,3477.1,2.3003]
[1721307082266,2.87477,3478.6,3477.2,2.87587]
[1721307082601,2.87498,3478.3,3477.3,0.36470325]
[1721307083406,2.87498,3478.3,3477.3,0.06460302]
[1721307083562,2.87498,3478.3,3477.1,2.3003]
[1721307083896,2.87498,3478.3,3477.2,0.06463095]
[1721307085169,2.87513,3478.1,3477.2,0.06463095]
[1721307085707,2.87482,3478.5,3477.2,0.06463095]
[1721307085877,2.87482,3478.5,3477.3,0.2364931]
[1721307086399,2.87466,3478.7,3477.4,0.06433984]
[1721307087486,2.87466,3478.7,3477.5,2.3017]
[1721307087875,2.87466,3478.7,3477.6,0.06427003]
[1721307088079,2.93,3478.8,3477.6,0.06427003]
[1721307088390,2.93,3478.8,3477.6,2.93980003]
[1721307088578,2.93,3478.8,3477.7,2.3799]
[1721307088774,2.93,3478.8,3477.7,5.25535]
[1721307088998,2.93,3478.8,3477.8,0.06416235]
[1721307089889,2.93,3478.8,3477.9,0.05749393]
[1721307090072,2.93,3478.8,3478.1,2.4782]
[1721307090499,2.59734454,3480.0,3478.1,2.4782]
[1721307090500,10.1539,3479.6,3478.2,2.93904881]
[1721307090701,2.8739,3479.6,3478.2,2.93904881]
[1721307091607,2.8739,3479.6,3478.2,0.06400881]
[1721307091608,2.87398,3479.5,3478.2,0.06400881]
[1721307092190,2.8744,3479.0,3478.2,0.06400881]
[1721307092414,0.28744,3478.9,3478.2,0.06400881]
[1721307093318,2.596,3479.0,3477.0,0.59091928]
[1721307093476,2.93762056,3479.2,3476.6,5.364]
[1721307093477,2.87564,3477.5,3476.6,2.334]
[1721307093810,2.87571,3477.4,3476.6,2.334]
[1721307094010,0.03322366,3477.3,3476.6,2.334]
[1721307094202,2.90903366,3477.3,3476.6,2.334]
[1721307094398,3.48750803,3477.3,3476.6,2.334]
[1721307095299,2.87602,3477.1,3476.6,2.334]
[1721307095510,2.87622,3476.8,3475.8,2.4623]
[1721307096599,2.87633,3476.7,3475.8,2.4623]
[1721307097515,6.05026437,3477.3,3475.8,2.4623]
[1721307097516,2.87601,3477.1,3475.8,2.4623]
[1721307098725,4.9936,3478.4,3476.0,3.03]
[1721307098915,2.87515,3478.1,3476.2,5.4494]
[1721307099113,2.87515,3478.1,3476.5,2.87638]
[1721307099312,2.87515,3478.1,3476.7,2.87627]
[1721307099491,2.87515,3478.1,3476.8,3.0]
[1721307099690,2.87515,3478.1,3476.8,3.0575068]
[1721307100011,2.87505,3478.2,3476.8,3.0]
[1721307100219,2.87513,3478.1,3476.8,3.0]
[1721307100591,2.87513,3478.1,3476.8,5.87618]
[1721307100824,2.87503,3478.3,3476.9,2.87611]
[1721307101074,2.87485,3478.5,3477.0,2.32590453]
[1721307101338,5.80474,3478.6,3477.1,2.87595]
[1721307101623,5.80474,3478.6,3477.2,2.87586]
[1721307101923,5.80474,3478.6,3477.2,2.93234428]
[1721307102222,2.8748,3478.5,3477.2,2.93234428]
[1721307102630,2.8748,3478.5,3477.2,0.05648428]
[1721307102832,2.87503,3478.3,3477.2,0.05648428]
[1721307103628,2.90825366,3478.3,3477.2,0.05648428]
[1721307103834,2.87503,3478.3,3477.2,0.05648428]
[1721307104495,2.93,3478.6,3477.2,0.05648428]
[1721307104708,2.93,3478.6,3477.5,2.87556]
[1721307105349,2.93,3478.6,3477.6,0.05663159]
[1721307105692,2.93,3478.6,3477.6,2.93216159]
[1721307106827,2.93,3478.6,3477.6,0.05663159]
[1721307107138,2.93,3478.6,3477.6,3.05663159]
[1721307107748,5.80473,3478.6,3477.6,3.05663159]
[1721307107966,2.93,3478.6,3477.6,0.05663159]
[1721307108235,5.80473,3478.6,3477.6,0.05663159]
[1721307108396,5.80473,3478.6,3477.7,0.05660166]
[1721307108729,2.87495,3478.4,3477.3,5.3658]
[1721307108931,2.90819366,3478.3,3477.8,0.05657174]
[1721307109129,2.90819366,3478.3,3477.3,2.3658]
[1721307109130,2.87505,3478.2,3477.3,2.3658]
[1721307109929,0.03322366,3478.1,3477.4,0.05669144]
[1721307110301,2.87505,3478.2,3477.4,0.05669144]
[1721307110504,2.87494,3478.4,3477.4,0.29894058]
[1721307111018,2.87498,3478.3,3477.4,0.29894058]
[1721307111219,2.87498,3478.3,3477.4,0.05669144]
[1721307111396,2.87515,3478.1,3477.4,0.05669144]
[1721307111601,2.2678,3478.2,3477.4,0.05669144]
[1721307111602,2.87562,3477.5,3477.4,0.05669144]
[1721307111913,2.87615,3476.9,3475.7,2.3018]
[1721307112112,2.90946366,3476.8,3475.7,2.3018]
[1721307112307,2.90946366,3476.8,3475.8,0.0552645]
[1721307112910,2.87624,3476.8,3475.8,0.0552645]
[1721307113110,2.8761,3477.0,3475.8,0.0552645]
[1721307113111,5.7522,3477.0,3475.8,0.0552645]
[1721307113434,0.03322366,3476.9,3475.8,0.0552645]
[1721307113625,2.90936366,3476.9,3475.8,0.0552645]
[1721307113808,3.48791003,3476.9,3475.8,0.0552645]
[1721307115112,3.45468637,3476.9,3475.8,0.0552645]
[1721307115310,2.87569,3477.5,3475.8,0.0552645]
[1721307115502,2.56800727,3478.2,3475.8,0.0552645]
[1721307115503,2.87554,3477.7,3476.3,2.8766]
[1721307115898,2.87554,3477.7,3476.4,0.0550848]
[1721307116629,2.87559,3477.6,3476.4,0.0550848]
[1721307117432,0.03322366,3478.1,3476.4,0.0550848]
[1721307117433,2.87579,3477.3,3476.4,0.0550848]
[1721307117643,2.90911366,3477.2,3476.4,0.0550848]
[1721307117840,2.90911366,3477.2,3476.5,0.05505486]
[1721307118042,2.90911366,3477.2,3476.2,2.4192]
[1721307118534,2.87597,3477.1,3476.3,0.05511474]
[1721307118729,0.575186,3477.0,3476.3,0.05511474]
[1721307118930,2.87575,3477.4,3476.2,2.4192]
[1721307119231,2.8756,3477.6,3476.2,2.47672181]
[1721307119421,3.17528727,3478.2,3476.3,0.11281944]
[1721307119422,2.87532,3477.9,3476.3,0.11281944]
[1721307119607,2.87538,3477.8,3476.4,2.87653]
[1721307119813,2.87522,3478.0,3476.6,2.87636]
[1721307120024,0.86763707,3478.0,3476.6,2.87636]
[1721307120221,0.86763707,3478.0,3476.7,0.05516243]
[1721307120735,3.86763707,3478.0,3476.7,0.05516243]
[1721307121231,3.86763707,3478.0,3476.8,2.3568]
[1721307121432,2.8753,3477.9,3476.9,0.05510255]
[1721307121602,3.54957671,3477.9,3476.9,0.05510255]
[1721307122137,2.8753,3477.9,3476.9,0.05510255]
[1721307122343,2.87513,3478.1,3476.9,0.05510255]
[1721307123114,2.596,3478.3,3476.9,0.05510255]
[1721307123314,2.596,3478.3,3476.5,3.0]
[1721307123315,0.55,3478.2,3476.6,2.2855]
[1721307123512,3.55,3478.2,3477.0,0.05510051]
[1721307123733,3.55,3478.2,3476.6,2.2855]
[1721307123734,0.91476992,3478.1,3476.7,0.05519032]
[1721307123935,0.91476992,3478.1,3477.1,0.05509051]
[1721307124111,0.6146,3478.1,3476.6,2.2855]
[1721307124307,0.6146,3478.1,3477.2,0.05506058]
[1721307124512,0.6146,3478.1,3476.6,2.2855]
[1721307124783,0.62106,3478.0,3477.3,0.05503065]
[1721307125061,0.62106,3478.0,3476.6,2.2855]
[1721307125062,0.62106,3478.0,3476.7,2.87628]
[1721307125358,3.0,3478.2,3476.8,0.11270566]
[1721307125560,2.8843,3478.8,3477.0,3.03]
[1721307125561,2.93,3478.8,3477.0,3.03]
[1721307125758,2.89670849,3479.7,3477.2,2.4768]
[1721307125930,0.59285202,3479.6,3477.4,2.3843]
[1721307126138,0.32220757,3479.5,3477.5,0.2441797]
[1721307126335,0.32220757,3479.5,3477.5,0.29907275]
[1721307126543,0.35543123,3479.5,3477.5,0.05489305]
[1721307126750,2.596,3479.2,3477.5,0.05489305]
[1721307126945,2.596,3478.7,3477.5,0.05489305]
[1721307127162,0.03322366,3478.6,3477.5,0.05489305]
[1721307127348,0.03322366,3478.6,3477.4,2.3843]
[1721307127665,0.26292237,3478.5,3477.4,2.3843]
[1721307127868,0.55,3478.4,3477.4,2.3843]
[1721307129484,2.596,3478.2,3476.4,2.2548]
[1721307129683,0.58322366,3478.1,3476.4,2.2548]
[1721307129848,0.61092237,3478.0,3476.4,2.2548]
[1721307130032,0.58322366,3477.9,3476.4,2.2548]
[1721307130232,0.61092237,3478.0,3476.5,0.05515851]
[1721307130766,0.03322366,3477.9,3476.5,0.05515851]
[1721307130938,0.58322366,3477.9,3476.5,0.05515851]
[1721307131138,0.4194146,3477.8,3476.5,0.05515851]
[1721307131348,0.03322366,3477.7,3476.5,0.05515851]
[1721307131550,0.58322366,3477.7,3476.5,0.05515851]
[1721307131749,0.03322366,3477.7,3476.5,0.05515851]
[1721307132090,0.03322366,3477.7,3476.4,2.2548]
[1721307132362,3.17922366,3477.7,3475.8,2.98951928]
[1721307132581,3.35986383,3477.6,3475.9,0.9997951]
[1721307132786,0.58322366,3477.5,3475.9,1.05516716]
[1721307132960,0.58322366,3477.5,3475.9,0.05537206]
[1721307133392,4.9381,3477.1,3475.9,0.05537206]
[1721307133553,4.07703366,3477.0,3475.9,0.05537206]
[1721307133882,4.07703366,3477.0,3475.5,0.59091928]
[1721307134030,4.07703366,3477.0,3475.6,0.05546193]
[1721307134236,4.07703366,3477.0,3475.7,0.99982484]
[1721307134479,4.07703366,3477.0,3475.4,2.3784]
[1721307134480,4.07703366,3477.0,3475.8,0.05540202]
[1721307134682,4.07703366,3477.0,3475.4,2.96931928]
[1721307134683,1.19451337,3476.9,3475.5,0.05549189]
[1721307134833,0.58322366,3476.8,3475.9,0.05537206]
[1721307135028,0.58322366,3476.8,3475.4,2.96931928]
[1721307135235,0.58322366,3476.8,3475.5,0.05585281]
[1721307135433,0.55,3476.8,3475.6,0.99983719]
[1721307135674,0.5271547,3476.7,3475.7,0.05579289]
[1721307135834,0.55,3476.6,3475.7,0.05579289]
[1721307136034,0.55,3476.6,3475.4,2.96931928]
[1721307136277,0.55,3476.6,3475.5,1.05571129]
[1721307136484,0.55,3476.6,3475.5,1.64663057]
[1721307136635,0.55,3476.6,3475.6,0.99983254]
[1721307136836,0.55,3476.6,3475.7,0.05581883]
[1721307137270,0.55,3476.6,3475.5,0.59091928]
[1721307137472,0.55,3476.6,3475.6,1.05568159]
[1721307137683,0.03322366,3476.5,3475.7,0.9998328]
[1721307137976,0.03322366,3476.5,3475.6,0.05584879]
[1721307138283,0.37063784,3476.4,3475.7,0.05581883]
[1721307138445,0.58322366,3476.3,3475.7,0.05581883]
[1721307138650,0.58322366,3476.3,3475.3,0.59091928]
[1721307138853,0.03322366,3476.2,3475.4,1.05576935]
[1721307139151,0.03322366,3476.2,3475.4,0.05590871]
[1721307139152,2.596,3476.1,3475.4,0.05590871]
[1721307139350,0.35114603,3476.0,3475.4,0.05590871]
[1721307139581,0.55,3475.9,3475.2,0.59091928]
[1721307139784,0.03322366,3475.8,3475.5,0.05587875]
[1721307139967,0.03322366,3475.8,3475.2,0.59091928]
[1721307140164,0.03322366,3475.8,3475.6,0.05584879]
[1721307140362,0.03322366,3475.8,3475.2,0.59091928]
[1721307140363,0.42014327,3475.7,3475.2,0.59091928]
[1721307140593,0.85028672,3475.9,3475.2,1.59080271]
[1721307140594,0.30028672,3475.9,3475.2,1.59080271]
[1721307140756,3.31792237,3476.0,3475.2,1.59080271]
[1721307140957,3.0,3475.9,3475.2,1.59080271]
[1721307141152,0.03322366,3475.8,3475.2,1.59080271]
[1721307141382,0.03322366,3475.8,3475.2,0.59091928]
[1721307141690,0.03322366,3475.8,3475.3,0.99988388]
[1721307141893,0.03322366,3475.8,3475.1,0.59091928]
[1721307141894,0.56292237,3475.8,3475.1,0.59091928]
[1721307142061,0.56292237,3475.8,3475.2,0.99988327]
[1721307142461,3.0,3476.0,3475.3,0.99988178]